[Event "Reykjavik Open 2025"]
[Site "Reykjavik"]
[Date "2025.04.13"]
[Round "6.7"]
[White "Tahay, Alexis"]
[Black "Amar, Elham"]
[Result "0-1"]
[Annotator "ChessBase"]
[ECO "B91"]
[WhiteElo "2397"]
[BlackElo "2546"]
[PlyCount "118"]
[EventDate "2025.04.09"]
[EventType "swiss"]
[EventCountry "ISL"]
[SourceTitle "playchess.com"]
[Source "ChessBase"]
[SourceQuality "1"]
[TimeControl "40/5400+30:1800+30"]

1. e4 {[%emt 0:02:49]} c5 {[%emt 0:00:09]} 2. Nf3 {[%emt 0:00:05]} d6 {[%emt 0:00:08]} 3. d4 {[%emt 0:00:33]} cxd4 {[%emt 0:00:07]} 4. Nxd4 {[%emt 0:00:09]} Nf6 {[%emt 0:00:06]} 5. Nc3 {[%emt 0:00:06]} a6 {[%emt 0:00:05]} 6. g3 {[%emt 0:01:31]} e5 {[%emt 0:00:42]} 7. Nde2 {[%emt 0:01:16]} b5 {[%emt 0:00:20]} 8. Nd5 {[%emt 0:01:12]} Nxd5 {[%emt 0:00:15]} 9. Qxd5 {[%emt 0:00:07]} Ra7 {[%emt 0:00:01]} 10. Be3 {[%emt 0:01:13]} Be6 {[%emt 0:07:21]} 11. Qd2 {[%emt 0:00:21]} Rb7 {[%emt 0:00:48]} 12. Nc3 {[%emt 0:01:31]} Be7 {[%emt 0:00:33]} 13. Nd5 {[%emt 0:06:57]} O-O {[%emt 0:11:21]} 14. O-O-O {[%emt 0:02:48]} Bxd5 {[%emt 0:02:03]} 15. Qxd5 {[%emt 0:03:22]} Qc7 {[%emt 0:00:42]} 16. Rd3 {[%emt 0:07:47]} Nd7 {[%emt 0:10:56]} 17. Rc3 {[%emt 0:01:12]} Qb8 {[%emt 0:00:03]} 18. Qc6 {[%emt 0:09:18]} Nc5 {[%emt 0:03:01]} 19. h4 {[%emt 0:12:42]} Bd8 {[%emt 0:13:22]} 20. Be2 {[%emt 0:06:53]} Ba5 {[%emt 0:08:49]} 21. Bxc5 {[%emt 0:00:50]} dxc5 {[%emt 0:00:04]} 22. Ra3 {[%emt 0:00:57]} Rc8 {[%emt 0:06:03]} 23. Qd5 {[%emt 0:07:46]} Rd8 {[%emt 0:00:45]} 24. Qxc5 {[%emt 0:02:08]} Rc7 {[%emt 0:01:05]} 25. Qe3 {[%emt 0:00:07]} Bd2+ {[%emt 0:00:04]} 26. Qxd2 {[%emt 0:00:03]} Rxd2 {[%emt 0:00:03]} 27. Kxd2 {[%emt 0:00:06]} Qb6 {[%emt 0:00:28]} 28. Rf1 {[%emt 0:02:18]} g6 {[%emt 0:00:44]} 29. Kc1 {[%emt 0:01:56]} Qd4 {[%emt 0:02:14]} 30. f3 {[%emt 0:02:42]} Kg7 {[%emt 0:00:21]} 31. Rb3 {[%emt 0:09:36]} Rc5 {[%emt 0:06:29]} 32. a3 {[%emt 0:01:57]} a5 {[%emt 0:00:28]} 33. g4 {[%emt 0:03:00]} h6 {[%emt 0:01:22]} 34. h5 {[%emt 0:02:30]} gxh5 {[%emt 0:02:45]} 35. gxh5 {[%emt 0:00:01]} b4 {[%emt 0:01:00]} 36. a4 {[%emt 0:00:57]} Qd7 {[%emt 0:01:09]} 37. Bb5 {[%emt 0:03:18]} Qh3 {[%emt 0:00:06]} 38. Kb1 {[%emt 0:04:25]} Qxh5 {[%emt 0:00:51]} 39. Rd3 {[%emt 0:00:57]} Qh2 {[%emt 0:00:35]} 40. Rc1 {[%emt 0:01:08]} Qf2 {[%emt 0:00:25]} 41. Rdd1 {[%emt 0:31:28]} Qxf3 {[%emt 0:30:21]} 42. Rg1+ {[%emt 0:00:06]} Kf8 {[%emt 0:00:17]} 43. Rcd1 {[%emt 0:00:00]} Rc8 {[%emt 0:00:00]} 44. Bd3 {[%emt 0:00:00]} b3 {[%emt 0:00:00]} 45. cxb3 {[%emt 0:00:00]} Rd8 {[%emt 0:00:00]} 46. Rgf1 {[%emt 0:00:00]} Qe3 {[%emt 0:00:00]} 47. Rfe1 {[%emt 0:00:07]} Qb6 {[%emt 0:00:00]} 48. Kc2 {[%emt 0:00:00]} h5 {[%emt 0:00:00]} 49. Re2 {[%emt 0:00:00]} h4 {[%emt 0:00:00]} 50. Rh1 {[%emt 0:00:00]} Rxd3 {[%emt 0:00:00]} 51. Kxd3 {[%emt 0:00:00]} Qxb3+ {[%emt 0:00:00]} 52. Kd2 {[%emt 0:00:00]} Qxb2+ {[%emt 0:00:00]} 53. Kd3 {[%emt 0:00:00]} Qd4+ {[%emt 0:00:00]} 54. Kc2 {[%emt 0:00:00]} Qxa4+ {[%emt 0:00:00]} 55. Kd2 {[%emt 0:00:00]} Qa2+ {[%emt 0:00:00]} 56. Kd3 {[%emt 0:00:00]} Qb3+ {[%emt 0:00:00]} 57. Kd2 {[%emt 0:00:00]} h3 {[%emt 0:00:00]} 58. Rhh2 {[%emt 0:00:00]} a4 {[%emt 0:00:00]} 59. Ke1 {[%emt 0:00:00]} a3 {[%emt 0:00:00]} 0-1

[Event "Reykjavik Open 2025"]
[Site "Reykjavik"]
[Date "2025.04.13"]
[Round "6.8"]
[White "Kirk, Ezra"]
[Black "Sokolovsky, Yahli"]
[Result "1-0"]
[Annotator "ChessBase"]
[ECO "B51"]
[WhiteElo "2394"]
[BlackElo "2546"]
[PlyCount "65"]
[EventDate "2025.04.09"]
[EventType "swiss"]
[EventCountry "ISL"]
[SourceTitle "playchess.com"]
[Source "ChessBase"]
[SourceQuality "1"]
[TimeControl "40/5400+30:1800+30"]

1. e4 {[%emt 0:00:05]} c5 {[%emt 0:02:28]} 2. Nf3 {[%emt 0:00:10]} d6 {[%emt 0:00:05]} 3. Bb5+ {[%emt 0:00:07]} Nd7 {[%emt 0:00:08]} 4. O-O {[%emt 0:00:36]} a6 {[%emt 0:00:04]} 5. Bxd7+ {[%emt 0:00:05]} Bxd7 {[%emt 0:01:59]} 6. c3 {[%emt 0:00:09]} Nf6 {[%emt 0:02:33]} 7. Re1 {[%emt 0:01:06]} e6 {[%emt 0:06:58]} 8. d4 {[%emt 0:00:27]} Be7 {[%emt 0:00:15]} 9. e5 {[%emt 0:00:21]} dxe5 {[%emt 0:00:47]} 10. dxe5 {[%emt 0:00:07]} Nd5 {[%emt 0:00:09]} 11. c4 {[%emt 0:00:32]} Nb6 {[%emt 0:08:53]} 12. Nbd2 {[%emt 0:01:49]} Qc7 {[%emt 0:01:45]} 13. Qe2 {[%emt 0:03:01]} f5 {[%emt 0:04:32]} 14. exf6 {[%emt 0:04:56]} gxf6 {[%emt 0:02:45]} 15. Ne4 {[%emt 0:00:06]} O-O-O {[%emt 0:01:21]} 16. Bd2 {[%emt 0:02:21]} Rhg8 {[%emt 0:24:26]} 17. Ba5 {[%emt 0:03:31]} Rg4 {[%emt 0:03:59]} 18. Ne5 {[%emt 0:12:17]} Rxe4 {[%emt 0:05:56]} 19. Qxe4 {[%emt 0:00:38]} fxe5 {[%emt 0:00:02]} 20. Qxh7 {[%emt 0:00:27]} Bd6 {[%emt 0:02:43]} 21. Qg6 {[%emt 0:08:34]} Qc6 {[%emt 0:05:13]} 22. Rad1 {[%emt 0:03:00]} Bc7 {[%emt 0:06:46]} 23. b3 {[%emt 0:00:51]} Rf8 {[%emt 0:03:05]} 24. Qg7 {[%emt 0:12:51]} Bd6 {[%emt 0:01:46]} 25. Rxd6 {[%emt 0:09:16]} Qxd6 {[%emt 0:00:01]} 26. Bxb6 {[%emt 0:00:09]} e4 {[%emt 0:00:10]} 27. Ba5 {[%emt 0:06:19]} Bc6 {[%emt 0:00:05]} 28. Bc7 {[%emt 0:03:54]} Qd2 {[%emt 0:00:52]} 29. Qxf8+ {[%emt 0:00:28]} Kxc7 {[%emt 0:00:02]} 30. Qg7+ {[%emt 0:04:18]} Kb6 {[%emt 0:00:08]} 31. Qa1 {[%emt 0:00:17]} Ka5 {[%emt 0:00:54]} 32. Re3 {[%emt 0:00:39]} Kb6 {[%emt 0:01:03]} 33. h4 {[%emt 0:00:49]} 1-0

[Event "Reykjavik Open 2025"]
[Site "Reykjavik"]
[Date "2025.04.13"]
[Round "6.9"]
[White "Papp, Gabor"]
[Black "Prraneeth Vuppala"]
[Result "1/2-1/2"]
[Annotator "ChessBase"]
[ECO "B56"]
[WhiteElo "2502"]
[BlackElo "2433"]
[PlyCount "69"]
[EventDate "2025.04.09"]
[EventType "swiss"]
[EventCountry "ISL"]
[SourceTitle "playchess.com"]
[Source "ChessBase"]
[SourceQuality "1"]
[TimeControl "40/5400+30:1800+30"]

1. e4 {[%emt 0:00:04]} c5 {[%emt 0:03:37]} 2. Nf3 {[%emt 0:00:10]} d6 {[%emt 0:00:09]} 3. d4 {[%emt 0:00:05]} cxd4 {[%emt 0:00:08]} 4. Nxd4 {[%emt 0:00:04]} Nf6 {[%emt 0:00:07]} 5. Nc3 {[%emt 0:00:07]} e5 {[%emt 0:00:30]} 6. Bb5+ {[%emt 0:00:36]} Nbd7 {[%emt 0:00:28]} 7. Nf5 {[%emt 0:01:30]} a6 {[%emt 0:00:58]} 8. Ba4 {[%emt 0:01:09]} b5 {[%emt 0:00:52]} 9. Bb3 {[%emt 0:00:04]} Nc5 {[%emt 0:00:08]} 10. Bg5 {[%emt 0:00:56]} Bxf5 {[%emt 0:00:47]} 11. exf5 {[%emt 0:00:06]} Be7 {[%emt 0:00:10]} 12. Bxf6 {[%emt 0:04:07]} Bxf6 {[%emt 0:00:11]} 13. Qf3 {[%emt 0:00:05]} e4 {[%emt 0:01:57]} 14. Nxe4 {[%emt 0:02:49]} Bxb2 {[%emt 0:00:36]} 15. Nxd6+ {[%emt 0:05:15]} Qxd6 {[%emt 0:00:27]} 16. Qxa8+ {[%emt 0:01:13]} Kd7 {[%emt 0:00:10]} 17. Qa7+ {[%emt 0:15:34]} Kc6 {[%emt 0:00:24]} 18. O-O {[%emt 0:00:07]} Bxa1 {[%emt 0:00:11]} 19. Rxa1 {[%emt 0:00:06]} Rd8 {[%emt 0:01:14]} 20. c4 {[%emt 0:31:14]} b4 {[%emt 0:13:55]} 21. Re1 {[%emt 0:05:21]} Qd7 {[%emt 0:04:46]} 22. Ba4+ {[%emt 0:01:02]} Nxa4 {[%emt 0:02:27]} 23. Qxa6+ {[%emt 0:00:04]} Nb6 {[%emt 0:08:52]} 24. c5 {[%emt 0:00:09]} Qb7 {[%emt 0:00:39]} 25. Qxb7+ {[%emt 0:12:29]} Kxb7 {[%emt 0:00:03]} 26. cxb6 {[%emt 0:00:02]} Rd2 {[%emt 0:04:05]} 27. g4 {[%emt 0:00:04]} Rxa2 {[%emt 0:03:25]} 28. Re4 {[%emt 0:00:55]} Ra4 {[%emt 0:15:54]} 29. g5 {[%emt 0:00:21]} f6 {[%emt 0:09:40]} 30. g6 {[%emt 0:04:13]} hxg6 {[%emt 0:00:06]} 31. fxg6 {[%emt 0:00:02]} Kxb6 {[%emt 0:00:12]} 32. Kg2 {[%emt 0:00:03]} Kc6 {[%emt 0:09:59]} 33. h4 {[%emt 0:02:51]} Kd6 {[%emt 0:00:21]} 34. h5 {[%emt 0:02:04]} Ra5 {[%emt 0:00:41]} 35. Rxb4 {[%emt 0:00:54]} 1/2-1/2

[Event "Reykjavik Open 2025"]
[Site "Reykjavik"]
[Date "2025.04.13"]
[Round "6.10"]
[White "Willems, Niels"]
[Black "Royal, Shreyas"]
[Result "0-1"]
[Annotator "ChessBase"]
[ECO "A17"]
[WhiteElo "2394"]
[BlackElo "2465"]
[PlyCount "124"]
[EventDate "2025.04.09"]
[EventType "swiss"]
[EventCountry "ISL"]
[SourceTitle "playchess.com"]
[Source "ChessBase"]
[SourceQuality "1"]
[TimeControl "40/5400+30:1800+30"]

1. c4 {[%emt 0:00:04]} e6 {[%emt 0:00:05]} 2. Nc3 {[%emt 0:00:09]} d5 {[%emt 0:00:05]} 3. e3 {[%emt 0:00:05]} Nf6 {[%emt 0:00:21]} 4. Nf3 {[%emt 0:00:05]} b6 {[%emt 0:00:04]} 5. cxd5 {[%emt 0:00:10]} exd5 {[%emt 0:00:04]} 6. g3 {[%emt 0:00:25]} Bd6 {[%emt 0:00:19]} 7. Bg2 {[%emt 0:00:12]} O-O {[%emt 0:00:08]} 8. O-O {[%emt 0:00:09]} Re8 {[%emt 0:01:52]} 9. b3 {[%emt 0:00:31]} Nbd7 {[%emt 0:00:54]} 10. Bb2 {[%emt 0:01:19]} Ba6 {[%emt 0:01:31]} 11. d3 {[%emt 0:00:30]} Nc5 {[%emt 0:00:49]} 12. Ne1 {[%emt 0:00:11]} c6 {[%emt 0:05:16]} 13. b4 {[%emt 0:06:28]} Ne6 {[%emt 0:02:49]} 14. b5 {[%emt 0:03:14]} cxb5 {[%emt 0:01:38]} 15. Nxd5 {[%emt 0:00:28]} Nxd5 {[%emt 0:00:31]} 16. Bxd5 {[%emt 0:00:03]} Rc8 {[%emt 0:00:11]} 17. e4 {[%emt 0:09:58]} Qe7 {[%emt 0:09:10]} 18. Nc2 {[%emt 0:02:46]} Bc5 {[%emt 0:17:41]} 19. d4 {[%emt 0:05:53]} Bb4 {[%emt 0:00:14]} 20. Qd3 {[%emt 0:10:58]} Red8 {[%emt 0:12:31]} 21. Ne3 {[%emt 0:07:45]} Qd7 {[%emt 0:02:50]} 22. Rac1 {[%emt 0:03:20]} Bf8 {[%emt 0:01:38]} 23. f4 {[%emt 0:12:14]} Bb7 {[%emt 0:02:15]} 24. f5 {[%emt 0:00:30]} Bxd5 {[%emt 0:01:44]} 25. Nxd5 {[%emt 0:00:13]} Nc7 {[%emt 0:01:27]} 26. Nf4 {[%emt 0:00:44]} b4 {[%emt 0:00:16]} 27. Rc2 {[%emt 0:08:08]} Nb5 {[%emt 0:01:26]} 28. Rxc8 {[%emt 0:00:42]} Rxc8 {[%emt 0:00:01]} 29. e5 {[%emt 0:01:46]} Qc6 {[%emt 0:11:15]} 30. Rc1 {[%emt 0:02:35]} Nc3 {[%emt 0:00:01]} 31. Ne2 {[%emt 0:01:27]} Nxe2+ {[%emt 0:03:26]} 32. Qxe2 {[%emt 0:00:02]} Qb7 {[%emt 0:00:23]} 33. Rxc8 {[%emt 0:00:59]} Qxc8 {[%emt 0:00:02]} 34. Qd3 {[%emt 0:02:27]} b5 {[%emt 0:08:01]} 35. d5 {[%emt 0:18:28]} Qc4 {[%emt 0:03:47]} 36. Qxc4 {[%emt 0:00:10]} bxc4 {[%emt 0:00:01]} 37. Bd4 {[%emt 0:01:51]} f6 {[%emt 0:00:03]} 38. e6 {[%emt 0:01:48]} b3 {[%emt 0:00:07]} 39. axb3 {[%emt 0:00:40]} cxb3 {[%emt 0:00:03]} 40. Kf1 {[%emt 0:00:34]} Ba3 {[%emt 0:01:39]} 41. Ke2 {[%emt 0:07:04]} b2 {[%emt 0:00:50]} 42. Bxb2 {[%emt 0:00:01]} Bxb2 {[%emt 0:00:02]} 43. d6 {[%emt 0:00:08]} Kf8 {[%emt 0:00:16]} 44. g4 {[%emt 0:07:25]} Be5 {[%emt 0:00:58]} 45. d7 {[%emt 0:00:01]} Ke7 {[%emt 0:00:06]} 46. h4 {[%emt 0:01:51]} Bg3 {[%emt 0:00:05]} 47. h5 {[%emt 0:00:04]} a5 {[%emt 0:00:33]} 48. Kd3 {[%emt 0:00:14]} a4 {[%emt 0:00:00]} 49. Kc4 {[%emt 0:01:05]} a3 {[%emt 0:00:04]} 50. Kb3 {[%emt 0:00:03]} Bd6 {[%emt 0:00:03]} 51. Ka2 {[%emt 0:04:25]} Kd8 {[%emt 0:00:05]} 52. Kb3 {[%emt 0:00:01]} Kc7 {[%emt 0:00:06]} 53. Ka2 {[%emt 0:00:03]} Be7 {[%emt 0:00:03]} 54. Kb3 {[%emt 0:00:08]} h6 {[%emt 0:00:23]} 55. Ka2 {[%emt 0:00:03]} Kd6 {[%emt 0:01:00]} 56. Kxa3 {[%emt 0:00:26]} Ke5+ {[%emt 0:00:01]} 57. Ka4 {[%emt 0:00:07]} Kf4 {[%emt 0:00:11]} 58. Kb5 {[%emt 0:00:44]} Kxg4 {[%emt 0:00:02]} 59. Kc6 {[%emt 0:00:09]} Kxf5 {[%emt 0:00:06]} 60. Kd5 {[%emt 0:01:09]} g5 {[%emt 0:00:22]} 61. hxg6 {[%emt 0:00:24]} Kxg6 {[%emt 0:00:01]} 62. Kc6 {[%emt 0:01:26]} Kf5 {[%emt 0:00:07]} 0-1

[Event "Reykjavik Open 2025"]
[Site "Reykjavik"]
[Date "2025.04.13"]
[Round "6.11"]
[White "Hjartarson, Johann"]
[Black "Terrieux, Kevin"]
[Result "1-0"]
[Annotator "ChessBase"]
[ECO "A25"]
[WhiteElo "2461"]
[BlackElo "2394"]
[PlyCount "53"]
[EventDate "2025.04.09"]
[EventType "swiss"]
[EventCountry "ISL"]
[SourceTitle "playchess.com"]
[Source "ChessBase"]
[SourceQuality "1"]
[TimeControl "40/5400+30:1800+30"]

1. c4 {[%emt 0:00:03]} e5 {[%emt 0:05:04]} 2. g3 {[%emt 0:00:14]} Nc6 {[%emt 0:00:47]} 3. Bg2 {[%emt 0:00:14]} g6 {[%emt 0:00:58]} 4. Nc3 {[%emt 0:00:13]} Bg7 {[%emt 0:00:07]} 5. e3 {[%emt 0:00:44]} d6 {[%emt 0:00:15]} 6. Nge2 {[%emt 0:00:14]} Nge7 {[%emt 0:06:01]} 7. d3 {[%emt 0:04:29]} h5 {[%emt 0:04:47]} 8. h4 {[%emt 0:01:35]} Bg4 {[%emt 0:00:25]} 9. Rb1 {[%emt 0:00:44]} a5 {[%emt 0:01:21]} 10. a3 {[%emt 0:00:48]} Qd7 {[%emt 0:02:17]} 11. b4 {[%emt 0:03:13]} axb4 {[%emt 0:00:03]} 12. axb4 {[%emt 0:00:10]} O-O {[%emt 0:01:55]} 13. b5 {[%emt 0:10:13]} Nd8 {[%emt 0:01:23]} 14. Qb3 {[%emt 0:00:30]} c6 {[%emt 0:24:31]} 15. Ba3 {[%emt 0:02:30]} f6 {[%emt 0:03:02]} 16. d4 {[%emt 0:23:30]} Nf7 {[%emt 0:00:40]} 17. d5 {[%emt 0:14:01]} cxb5 {[%emt 0:09:56]} 18. Nxb5 {[%emt 0:01:31]} Bxe2 {[%emt 0:03:35]} 19. Kxe2 {[%emt 0:00:04]} f5 {[%emt 0:01:50]} 20. c5 {[%emt 0:03:42]} Nc8 {[%emt 0:15:04]} 21. c6 {[%emt 0:03:15]} Qe7 {[%emt 0:00:57]} 22. Rhc1 {[%emt 0:00:59]} e4 {[%emt 0:01:17]} 23. Nc7 {[%emt 0:09:26]} Rxa3 {[%emt 0:01:32]} 24. Qxa3 {[%emt 0:00:13]} bxc6 {[%emt 0:00:29]} 25. Ne6 {[%emt 0:00:34]} Re8 {[%emt 0:00:11]} 26. Rxc6 {[%emt 0:00:56]} Qf6 {[%emt 0:00:46]} 27. Rb8 {[%emt 0:00:49]} 1-0

[Event "Reykjavik Open 2025"]
[Site "Reykjavik"]
[Date "2025.04.13"]
[Round "6.12"]
[White "Adhiban, B.."]
[Black "Nissinen, Niilo Man"]
[Result "1-0"]
[Annotator "ChessBase"]
[ECO "A17"]
[WhiteElo "2554"]
[BlackElo "2268"]
[PlyCount "81"]
[EventDate "2025.04.09"]
[EventType "swiss"]
[EventCountry "ISL"]
[SourceTitle "playchess.com"]
[Source "ChessBase"]
[SourceQuality "1"]
[TimeControl "40/5400+30:1800+30"]

1. c4 {[%emt 0:00:03]} e6 {[%emt 0:00:20]} 2. Nc3 {[%emt 0:01:45]} Bb4 {[%emt 0:00:25]} 3. Nf3 {[%emt 0:04:46]} Nf6 {[%emt 0:01:13]} 4. g4 {[%emt 0:00:05]} h6 {[%emt 0:02:36]} 5. Rg1 {[%emt 0:04:08]} d5 {[%emt 0:12:03]} 6. Qa4+ {[%emt 0:10:01]} Nc6 {[%emt 0:00:10]} 7. Ne5 {[%emt 0:01:16]} Be7 {[%emt 0:22:13]} 8. Nxc6 {[%emt 0:04:39]} bxc6 {[%emt 0:00:11]} 9. d4 {[%emt 0:00:12]} O-O {[%emt 0:40:13]} 10. g5 {[%emt 0:02:42]} Nd7 {[%emt 0:03:39]} 11. gxh6 {[%emt 0:03:38]} g6 {[%emt 0:00:08]} 12. Qc2 {[%emt 0:09:23]} Bf6 {[%emt 0:00:37]} 13. Bd2 {[%emt 0:02:12]} c5 {[%emt 0:02:15]} 14. dxc5 {[%emt 0:23:25]} Nxc5 {[%emt 0:00:40]} 15. Bg2 {[%emt 0:00:14]} Bb7 {[%emt 0:02:46]} 16. O-O-O {[%emt 0:07:37]} Rb8 {[%emt 0:02:22]} 17. Be3 {[%emt 0:05:07]} d4 {[%emt 0:02:39]} 18. Bxb7 {[%emt 0:00:15]} Rxb7 {[%emt 0:00:38]} 19. Ne4 {[%emt 0:00:06]} Nxe4 {[%emt 0:01:03]} 20. Qxe4 {[%emt 0:00:03]} Rb4 {[%emt 0:00:54]} 21. b3 {[%emt 0:00:58]} c5 {[%emt 0:01:07]} 22. Bd2 {[%emt 0:00:31]} Rb8 {[%emt 0:01:37]} 23. h4 {[%emt 0:00:43]} Kh8 {[%emt 0:00:53]} 24. Bg5 {[%emt 0:01:45]} a5 {[%emt 0:01:14]} 25. Qf4 {[%emt 0:02:19]} Bxg5 {[%emt 0:00:14]} 26. Rxg5 {[%emt 0:01:32]} a4 {[%emt 0:00:24]} 27. Rxc5 {[%emt 0:00:38]} axb3 {[%emt 0:00:08]} 28. axb3 {[%emt 0:00:03]} Rxb3 {[%emt 0:00:29]} 29. Rxd4 {[%emt 0:00:38]} Qe7 {[%emt 0:01:11]} 30. Rd7 {[%emt 0:08:48]} e5 {[%emt 0:00:31]} 31. Qg5 {[%emt 0:03:00]} Qe6 {[%emt 0:00:31]} 32. Rd8 {[%emt 0:01:36]} Rb1+ {[%emt 0:00:33]} 33. Kxb1 {[%emt 0:01:24]} Qb6+ {[%emt 0:00:06]} 34. Kc2 {[%emt 0:00:04]} Rxd8 {[%emt 0:00:19]} 35. Qxe5+ {[%emt 0:00:18]} f6 {[%emt 0:00:06]} 36. Qe7 {[%emt 0:00:16]} Rd2+ {[%emt 0:00:47]} 37. Kxd2 {[%emt 0:00:06]} Qb2+ {[%emt 0:00:04]} 38. Kd3 {[%emt 0:00:32]} Qb1+ {[%emt 0:01:31]} 39. Ke3 {[%emt 0:00:36]} Qc1+ {[%emt 0:00:14]} 40. Ke4 {[%emt 0:00:48]} Qh1+ {[%emt 0:00:53]} 41. f3 {[%emt 0:30:21]} 1-0

[Event "Reykjavik Open 2025"]
[Site "Reykjavik"]
[Date "2025.04.13"]
[Round "6.13"]
[White "Haug, Havard"]
[Black "Jacobson, Brandon"]
[Result "1/2-1/2"]
[Annotator "ChessBase"]
[ECO "C45"]
[WhiteElo "2339"]
[BlackElo "2570"]
[PlyCount "78"]
[EventDate "2025.04.09"]
[EventType "swiss"]
[EventCountry "ISL"]
[SourceTitle "playchess.com"]
[Source "ChessBase"]
[SourceQuality "1"]
[TimeControl "40/5400+30:1800+30"]

1. e4 {[%emt 0:00:04]} e5 {[%emt 0:03:16]} 2. Nf3 {[%emt 0:01:39]} Nc6 {[%emt 0:00:09]} 3. d4 {[%emt 0:00:31]} exd4 {[%emt 0:00:19]} 4. Nxd4 {[%emt 0:00:06]} Nf6 {[%emt 0:07:43]} 5. Nxc6 {[%emt 0:00:17]} bxc6 {[%emt 0:00:06]} 6. Bd3 {[%emt 0:00:07]} d6 {[%emt 0:06:13]} 7. O-O {[%emt 0:00:28]} Be7 {[%emt 0:01:05]} 8. b3 {[%emt 0:06:21]} Ng4 {[%emt 0:08:41]} 9. Bb2 {[%emt 0:06:11]} Bf6 {[%emt 0:03:44]} 10. Bxf6 {[%emt 0:03:48]} Qxf6 {[%emt 0:00:06]} 11. Nd2 {[%emt 0:00:15]} Ne5 {[%emt 0:15:12]} 12. Nc4 {[%emt 0:08:18]} O-O {[%emt 0:04:32]} 13. Nxe5 {[%emt 0:02:59]} Qxe5 {[%emt 0:00:06]} 14. Qf3 {[%emt 0:00:19]} a5 {[%emt 0:02:50]} 15. Qg3 {[%emt 0:04:59]} Qc5 {[%emt 0:05:36]} 16. a4 {[%emt 0:02:08]} Ba6 {[%emt 0:05:55]} 17. Rfe1 {[%emt 0:07:20]} Rfe8 {[%emt 0:05:08]} 18. Rad1 {[%emt 0:03:22]} Bxd3 {[%emt 0:01:16]} 19. Qxd3 {[%emt 0:00:19]} Rab8 {[%emt 0:00:04]} 20. Re3 {[%emt 0:03:06]} Rb4 {[%emt 0:01:35]} 21. Qc3 {[%emt 0:01:41]} Qxc3 {[%emt 0:09:31]} 22. Rxc3 {[%emt 0:00:02]} c5 {[%emt 0:00:09]} 23. f3 {[%emt 0:00:24]} f6 {[%emt 0:00:15]} 24. Kf2 {[%emt 0:00:24]} Kf7 {[%emt 0:00:13]} 25. Rd5 {[%emt 0:08:53]} g6 {[%emt 0:01:28]} 26. g4 {[%emt 0:04:50]} Ke6 {[%emt 0:06:05]} 27. h4 {[%emt 0:02:30]} Rh8 {[%emt 0:01:17]} 28. Kg3 {[%emt 0:04:00]} h5 {[%emt 0:05:25]} 29. gxh5 {[%emt 0:16:28]} c6 {[%emt 0:00:01]} 30. Rd1 {[%emt 0:00:26]} Rxh5 {[%emt 0:00:05]} 31. Re3 {[%emt 0:00:34]} c4 {[%emt 0:04:19]} 32. bxc4 {[%emt 0:00:18]} Rxc4 {[%emt 0:00:56]} 33. Red3 {[%emt 0:03:27]} d5 {[%emt 0:00:01]} 34. exd5+ {[%emt 0:00:42]} Rxd5 {[%emt 0:00:33]} 35. Re1+ {[%emt 0:01:29]} Kf5 {[%emt 0:00:57]} 36. Re2 {[%emt 0:04:41]} Rdc5 {[%emt 0:02:09]} 37. Rd6 {[%emt 0:01:32]} Rd5 {[%emt 0:00:29]} 38. Re4 {[%emt 0:00:12]} Rxe4 {[%emt 0:01:28]} 39. fxe4+ {[%emt 0:00:04]} Kxe4 {[%emt 0:00:30]} 1/2-1/2

[Event "Reykjavik Open 2025"]
[Site "Reykjavik"]
[Date "2025.04.13"]
[Round "6.14"]
[White "George Samir, David"]
[Black "Maze, Sebastien"]
[Result "1/2-1/2"]
[Annotator "ChessBase"]
[ECO "E60"]
[WhiteElo "2303"]
[BlackElo "2557"]
[PlyCount "82"]
[EventDate "2025.04.09"]
[EventType "swiss"]
[EventCountry "ISL"]
[SourceTitle "playchess.com"]
[Source "ChessBase"]
[SourceQuality "1"]
[TimeControl "40/5400+30:1800+30"]

1. d4 {[%emt 0:00:10]} Nf6 {[%emt 0:00:10]} 2. c4 {[%emt 0:00:05]} g6 {[%emt 0:00:27]} 3. h4 {[%emt 0:00:07]} h5 {[%emt 0:00:45]} 4. Nc3 {[%emt 0:00:13]} d6 {[%emt 0:00:10]} 5. e4 {[%emt 0:04:06]} Bg7 {[%emt 0:00:25]} 6. Nf3 {[%emt 0:00:59]} Bg4 {[%emt 0:01:16]} 7. Be2 {[%emt 0:02:11]} O-O {[%emt 0:03:56]} 8. Be3 {[%emt 0:04:28]} Nbd7 {[%emt 0:01:40]} 9. Qd2 {[%emt 0:17:43]} c5 {[%emt 0:12:35]} 10. O-O {[%emt 0:02:53]} Rc8 {[%emt 0:10:18]} 11. b3 {[%emt 0:02:41]} Re8 {[%emt 0:14:11]} 12. Rac1 {[%emt 0:06:05]} Qa5 {[%emt 0:03:25]} 13. Rfd1 {[%emt 0:04:19]} Bxf3 {[%emt 0:01:55]} 14. Bxf3 {[%emt 0:00:09]} cxd4 {[%emt 0:00:02]} 15. Bxd4 {[%emt 0:00:12]} Ne5 {[%emt 0:00:02]} 16. Be2 {[%emt 0:06:43]} Nc6 {[%emt 0:00:07]} 17. Be3 {[%emt 0:00:26]} Nd7 {[%emt 0:00:07]} 18. Nd5 {[%emt 0:03:46]} Qxd2 {[%emt 0:02:23]} 19. Rxd2 {[%emt 0:00:21]} Nc5 {[%emt 0:02:09]} 20. f3 {[%emt 0:01:38]} a5 {[%emt 0:00:23]} 21. Nc3 {[%emt 0:11:24]} Kh7 {[%emt 0:01:44]} 22. Nb5 {[%emt 0:03:02]} Bh6 {[%emt 0:04:53]} 23. Bxh6 Kxh6 {[%emt 0:00:02]} 24. Rb1 {[%emt 0:02:26]} Rg8 {[%emt 0:03:05]} 25. Kf2 {[%emt 0:02:52]} Ne6 {[%emt 0:00:17]} 26. g3 {[%emt 0:00:39]} Nc5 {[%emt 0:05:55]} 27. Nc3 {[%emt 0:04:51]} f5 {[%emt 0:00:43]} 28. exf5 {[%emt 0:00:48]} gxf5 {[%emt 0:00:01]} 29. f4 {[%emt 0:00:30]} Rg6 {[%emt 0:00:06]} 30. Rd5 {[%emt 0:03:11]} Rf8 {[%emt 0:00:30]} 31. Bf3 {[%emt 0:03:01]} Nb4 {[%emt 0:01:24]} 32. Rd2 {[%emt 0:02:35]} Nbd3+ {[%emt 0:01:39]} 33. Kg2 {[%emt 0:02:29]} Nxf4+ {[%emt 0:00:21]} 34. Kh2 {[%emt 0:00:04]} Nfd3 {[%emt 0:00:36]} 35. Be2 {[%emt 0:01:57]} f4 {[%emt 0:11:58]} 36. Bxd3 {[%emt 0:00:54]} Rxg3 {[%emt 0:00:00]} 37. Rbd1 {[%emt 0:00:58]} Rfg8 {[%emt 0:00:00]} 38. Nd5 {[%emt 0:02:07]} R3g4 {[%emt 0:08:18]} 39. Kh3 {[%emt 0:02:30]} Rg3+ {[%emt 0:01:06]} 40. Kh2 {[%emt 0:00:09]} R3g4 {[%emt 0:06:06]} 41. Kh3 {[%emt 0:30:11]} Rg3+ {[%emt 0:28:29]} 1/2-1/2